fUST/lending_fUST_20240306
["ID","MTS","AMOUNT","RATE_DAILY","PERIOD"]
[317063436,1709674242765,-2773.29,0.00023998,2]
[317063438,1709674242774,-2773.29,0.00023998,2]
[317063440,1709674242784,-500.0,0.00023999,2]
[317063441,1709674242797,-500.0,0.00023999,2]
[317063443,1709674242806,-500.0,0.00023999,2]
[317063445,1709674242817,-532.2,0.00023999,2]
[317063447,1709674242827,-500.0,0.00023999,2]
[317063449,1709674242837,-500.0,0.00023999,2]
[317063451,1709674242846,-500.0,0.00023999,2]
[317063453,1709674242856,-500.0,0.00023999,2]
[317063455,1709674242866,-500.0,0.00023999,2]
[317063457,1709674242876,-500.0,0.00023999,2]
[317063459,1709674242885,-500.0,0.00023999,2]
[317063461,1709674242895,-500.0,0.00023999,2]
[317063463,1709674242904,-500.0,0.00023999,2]
[317063465,1709674242914,-386.12162296,0.00023999,2]
[317063467,1709674242925,-151.0,0.00023999,2]
[317063469,1709674242934,-1650.501615,0.00023999,2]
[317063471,1709674242944,-1650.501615,0.00023999,2]
[317063473,1709674242954,-500.0,0.00023999,2]
[317063475,1709674242963,-500.0,0.00023999,2]
[317063477,1709674242973,-500.0,0.00023999,2]
[317063479,1709674242983,-628.22,0.00023999,2]
[317063481,1709674242993,-500.0,0.00023999,2]
[317063483,1709674243004,-500.0,0.00023999,2]
[317063484,1709674243013,-500.0,0.00023999,2]
[317063486,1709674243024,-500.0,0.00023999,2]
[317063488,1709674243034,-500.0,0.00023999,2]
[317063490,1709674243048,-500.0,0.00023999,2]
[317063492,1709674243057,-500.0,0.00023999,2]
[317063494,1709674243067,-500.0,0.00023999,2]
[317063496,1709674243078,-500.0,0.00023999,2]
[317063498,1709674243087,-500.0,0.00023999,2]
[317063500,1709674243096,-232.09523845,0.00023999,2]
[317063502,1709674243106,-239.142276,0.00023999,2]
[317063504,1709674243115,-239.142276,0.00023999,2]
[317063513,1709674243199,-754.88,0.00023999,2]
[317063515,1709674243210,-754.88,0.00023999,2]
[317063517,1709674243220,-754.88,0.00023999,2]
[317063519,1709674243229,-754.88,0.00023999,2]
[317063521,1709674243239,-754.88,0.00023999,2]
[317063523,1709674243248,-754.88,0.00023999,2]
[317063525,1709674243257,-755.06543472,0.00023999,2]
[317063527,1709674243267,-2773.29,0.00023999,2]
[317063529,1709674243276,-2773.29,0.00023999,2]
[317063531,1709674243286,-2773.29,0.00023999,2]
[317063533,1709674243299,-2773.29,0.00023999,2]
[317063535,1709674243308,-2773.29,0.00023999,2]
[317063537,1709674243317,-2773.29,0.00023999,2]
[317063538,1709674243327,-2773.48008691,0.00023999,2]
[317063540,1709674243338,-224.17844,0.00023999,2]
[317063542,1709674243347,-224.17844,0.00023999,2]
[317063544,1709674243357,-151.0,0.00023999,2]
[317063546,1709674243367,-27275.68704349,0.00024,6]
[317063573,1709674243637,-500.0,0.00023287,2]
[317063575,1709674243647,-674.85,0.00023835,2]
[317063577,1709674243658,-674.85,0.00023848,2]
[317063579,1709674243668,-674.85,0.00023848,2]
[317063581,1709674243677,-674.85,0.00023848,2]
[317063583,1709674243686,-674.85,0.00023848,2]
[317063585,1709674243696,-674.85,0.00023889,2]
[317063587,1709674243705,-674.85,0.00023899,2]
[317063589,1709674243714,-500.0,0.000239,2]
[317063591,1709674243724,-674.85,0.00023901,2]
[317063593,1709674243733,-674.85,0.00023904,2]
[317063594,1709674243742,-500.0,0.00023912,2]
[317063596,1709674243752,-674.85,0.00023914,2]
[317063598,1709674243762,-674.85,0.00023917,2]
[317063600,1709674243771,-674.85,0.00023924,2]
[317063602,1709674243781,-674.85,0.0002393,2]
[317063604,1709674243790,-674.85,0.00023931,2]
[317063606,1709674243805,-674.85,0.00023935,2]
[317063608,1709674243815,-7481.7327917,0.00024,6]
[317063610,1709674243827,-13759.21755841,0.00024,6]
[317063617,1709674243883,-19630.9403303,0.00024,6]
[317063619,1709674243897,-3522.60000001,0.00024,6]
[317063622,1709674243911,-8992.16385353,0.00024,6]
[317063625,1709674243933,-674.85,0.00023936,2]
[317063627,1709674243942,-4070.79752347,0.00024,6]
[317063629,1709674243953,-1226.01153415,0.00024,6]
[317063631,1709674243965,-7477.96116137,0.00024,6]
[317063635,1709674243994,-0.05732716,0.00024,6]
[317064471,1709674253194,-155.0,0.00022849,2]
[317064473,1709674253205,-374.9181638,0.00022977,7]
[317064477,1709674253236,-625.0818362,0.00022977,7]
[317064480,1709674253247,-500.0,0.00023287,2]
[317064482,1709674253257,-512.78,0.00023287,2]
[317064484,1709674253266,-504.01468886,0.00023287,2]
[317064486,1709674253277,-200.67041341,0.00023846,2]
[317064488,1709674253287,-637.64505067,0.00023846,2]
[317064491,1709674253297,-500.0,0.00023846,2]
[317064492,1709674253312,-500.0,0.00023846,2]
[317064494,1709674253322,-500.0,0.00023846,2]
[317064497,1709674253332,-500.0,0.00023846,2]
[317064498,1709674253342,-500.0,0.00023846,2]
[317064500,1709674253351,-500.0,0.00023846,2]
[317064503,1709674253361,-206.1938157,0.00023846,2]
[317064504,1709674253370,-500.0,0.00023846,2]
[317064506,1709674253380,-500.0,0.00023846,2]
[317064509,1709674253389,-500.0,0.00023846,2]
[317064510,1709674253398,-500.0,0.00023846,2]
[317064512,1709674253413,-500.0,0.00023846,2]
[317064514,1709674253423,-500.0,0.00023846,2]
[317064517,1709674253432,-500.0,0.00023846,2]
[317064518,1709674253441,-500.0,0.00023846,2]
[317064520,1709674253452,-500.0,0.00023846,2]
[317064523,1709674253464,-500.0,0.00023846,2]
[317064525,1709674253474,-500.0,0.00023846,2]
[317064527,1709674253486,-500.0,0.00023846,2]
[317064528,1709674253496,-500.0,0.00023846,2]
[317064530,1709674253506,-500.0,0.00023846,2]
[317064533,1709674253516,-500.0,0.00023846,2]
[317064534,1709674253526,-500.0,0.00023846,2]
[317064537,1709674253535,-500.0,0.00023846,2]
[317064538,1709674253545,-674.85,0.0002394,2]
[317064540,1709674253559,-674.85,0.00023944,2]
[317064542,1709674253570,-674.85,0.00023946,2]
[317064544,1709674253580,-674.85,0.00023946,2]
[317064546,1709674253591,-674.85,0.00023946,2]
[317064548,1709674253600,-674.85,0.00023946,2]
[317064550,1709674253611,-674.89,0.00023946,2]
[317064552,1709674253621,-155.08529691,0.00023998,2]
[317064554,1709674253630,-225.39881649,0.00023998,2]
[317064556,1709674253640,-733.49060134,0.00023998,2]
[317064558,1709674253650,-246.9523554,0.00023998,2]
[317064560,1709674253659,-298.83261026,0.00023998,2]
[317064562,1709674253669,-163.29643085,0.00023998,2]
[317064564,1709674253678,-238.70171817,0.00023998,2]
[317064566,1709674253687,-1472.85786267,0.00023998,2]
[317064569,1709674253697,-703.45953046,0.00023998,2]
[317064571,1709674253706,-440.91213672,0.00023998,2]
[317064572,1709674253716,-1880.71104706,0.00023998,2]
[317064574,1709674253725,-155.08529691,0.00023999,2]
[317064576,1709674253734,-155.08529691,0.00023999,2]
[317064578,1709674253743,-155.08529691,0.00023999,2]
[317064580,1709674253752,-155.08529691,0.00023999,2]
[317064582,1709674253762,-155.08529691,0.00023999,2]
[317064584,1709674253772,-113664.15517724,0.00024,6]
[317067681,1709675229078,1000.0,0.00027,120]
[317067684,1709675264248,1000.0,0.00025,90]
[317067686,1709675277039,1000.0,0.00024,50]
[317067793,1709675438371,-155.10391963,0.00019811,2]
[317067794,1709675438381,-155.10391963,0.00019812,2]
[317067795,1709675438391,-696.04216074,0.00019812,2]
[317067796,1709675438403,-1184.66888632,0.00019812,2]
[317067797,1709675438413,-166.509719,0.00019843,2]
[317067798,1709675438422,-250.0,0.00020463,2]
[317067799,1709675438431,-167.735506,0.00020607,2]
[317067800,1709675438443,-5148.4783578,0.00020818,2]
[317067801,1709675438458,-10096.30652548,0.00020818,2]
[317067802,1709675438467,-6037.0126783,0.00020819,2]
[317067803,1709675438477,-254.796677,0.00020844,2]
[317067804,1709675438486,-176.46034309,0.00021004,2]
[317067805,1709675438496,-431.91651792,0.00021527,2]
[317067806,1709675438506,-2763.7893,0.00021624,7]
[317067807,1709675438515,-175.0,0.00022,2]
[317067808,1709675438525,-176.46034308,0.00022452,2]
[317067809,1709675438534,-155.0,0.00022749,2]
[317067810,1709675438543,-1000.0,0.00022977,7]
[317067811,1709675438553,-292.39,0.00023,2]
[317067812,1709675438562,-439.23141639,0.00023,2]
[317067813,1709675438572,-385.54297514,0.00023002,2]
[317067814,1709675438581,-505.43026878,0.00023002,2]
[317067815,1709675438591,-417.04501947,0.00023005,2]
[317067816,1709675438600,-223.0338947,0.00023005,2]
[317067817,1709675438610,-175.0,0.00023014,2]
[317067818,1709675438619,-5000.0,0.00023176,7]
[317067819,1709675438628,-8588.25450744,0.00023177,6]
[317067820,1709675438638,-296.71731289,0.00023179,5]
[317067821,1709675438647,-5000.0,0.00023179,7]
[317067822,1709675438657,-1289.5422279,0.00023179,6]
[317067823,1709675438666,-500.0,0.00023287,2]
[317067824,1709675438676,-500.0,0.00023287,2]
[317067825,1709675438685,-500.0,0.00023287,2]
[317067826,1709675438695,-500.0,0.00023287,2]
[317067827,1709675438704,-500.0,0.00023287,2]
[317067828,1709675438714,-500.0,0.00023287,2]
[317067829,1709675438723,-500.0,0.00023287,2]
[317067830,1709675438732,-500.0,0.00023287,2]
[317067831,1709675438743,-500.0,0.00023287,2]
[317067832,1709675438755,-500.0,0.00023287,2]
[317067833,1709675438765,-500.0,0.00023287,2]
[317067834,1709675438775,-504.13508226,0.00023287,2]
[317067835,1709675438788,-500.0,0.00023287,2]
[317067836,1709675438798,-500.0,0.00023287,2]
[317067837,1709675438807,-500.0,0.00023287,2]
[317067838,1709675438817,-500.0,0.00023287,2]
[317067839,1709675438826,-500.0,0.00023287,2]
[317067840,1709675438836,-500.0,0.00023287,2]
[317067841,1709675438845,-500.0,0.00023287,2]
[317067842,1709675438855,-270.56,0.00023287,2]
[317067843,1709675438865,-500.0,0.00023287,2]
[317067844,1709675438875,-500.0,0.00023287,2]
[317067845,1709675438884,-500.0,0.00023287,2]
[317067846,1709675438894,-500.0,0.00023287,2]
[317067847,1709675438903,-500.0,0.00023287,2]
[317067848,1709675438915,-500.0,0.00023287,2]
[317067849,1709675438924,-500.0,0.00023287,2]
[317067850,1709675438935,-500.0,0.00023287,2]
[317067851,1709675438945,-500.0,0.00023287,2]
[317067852,1709675438954,-500.0,0.00023287,2]
[317067853,1709675438963,-500.0,0.00023287,2]
[317067854,1709675438972,-500.0,0.00023287,2]
[317067855,1709675438981,-500.0,0.00023287,2]
[317067856,1709675438991,-500.0,0.00023287,2]
[317067857,1709675439001,-500.0,0.00023287,2]
[317067858,1709675439011,-500.0,0.00023287,2]
[317067859,1709675439020,-500.0,0.00023287,2]
[317067860,1709675439030,-545.53346027,0.00023287,2]
[317067861,1709675439039,-570.00788862,0.00023287,2]
[317067862,1709675439048,-500.0,0.00023287,2]
[317067863,1709675439058,-626.94908055,0.00023287,2]
[317067864,1709675439067,-501.57070824,0.00023287,2]
[317067865,1709675439077,-500.0,0.00023287,2]
[317067866,1709675439086,-500.0,0.00023287,2]
[317067867,1709675439095,-500.0,0.00023287,2]
[317067868,1709675439106,-500.0,0.00023287,2]
[317067869,1709675439116,-329.08193079,0.00023287,2]
[317067870,1709675439125,-500.0,0.00023287,2]
[317067871,1709675439135,-500.0,0.00023287,2]
[317067872,1709675439144,-500.0,0.00023287,2]
[317067873,1709675439153,-500.0,0.00023287,2]
[317067874,1709675439162,-500.0,0.00023287,2]
[317067875,1709675439172,-895.45,0.00023287,2]
[317067876,1709675439182,-500.0,0.00023287,2]
[317067877,1709675439194,-500.6037562,0.00023287,2]
[317067878,1709675439204,-500.0,0.00023287,2]
[317067879,1709675439213,-500.0,0.00023287,2]
[317067880,1709675439223,-191.85655641,0.00023287,2]
[317067881,1709675439232,-500.0,0.00023287,2]
[317067882,1709675439252,-500.0,0.00023287,2]
[317067883,1709675439264,-500.0,0.00023287,2]
[317067884,1709675439273,-490.0,0.00023287,2]
[317067885,1709675439283,-500.0,0.00023287,2]
[317067886,1709675439293,-500.0,0.00023287,2]
[317067887,1709675439303,-500.0,0.00023287,2]
[317067888,1709675439313,-500.0,0.00023287,2]
[317067889,1709675439323,-500.0,0.00023287,2]
[317067890,1709675439333,-500.0,0.00023287,2]
[317067891,1709675439343,-500.0,0.00023287,2]
[317067892,1709675439353,-500.0,0.00023287,2]
[317067893,1709675439362,-2776.57,0.00023287,2]
[317067894,1709675439372,-924.43,0.00023287,2]
[317067895,1709675439382,-167.735506,0.00023416,2]
[317067896,1709675439391,-346.48,0.00023737,3]
[317067897,1709675439401,-337.74,0.00023747,2]
[317067898,1709675439410,-895.45,0.00023747,2]
[317067899,1709675439420,-500.0,0.00023747,2]
[317067900,1709675439430,-500.0,0.00023747,2]
[317067901,1709675439443,-500.0,0.00023747,2]
[317067902,1709675439452,-500.0,0.00023747,2]
[317067903,1709675439462,-500.0,0.00023747,2]
[317067904,1709675439471,-500.0,0.00023747,2]
[317067905,1709675439481,-2776.57,0.00023747,2]
[317067906,1709675439491,-500.0,0.00023747,2]
[317067907,1709675439500,-500.0,0.00023747,2]
[317067908,1709675439509,-500.0,0.00023747,2]
[317067910,1709675439647,-500.0,0.00023747,2]
[317067911,1709675439657,-500.0,0.00023747,2]
[317067912,1709675439667,-539.06464723,0.00023747,2]
[317067913,1709675439677,-500.0,0.00023747,2]
[317067914,1709675439687,-500.0,0.00023747,2]
[317067915,1709675439697,-181.96056118,0.00023747,2]
[317067916,1709675439707,-289.31689637,0.00023747,2]
[317067917,1709675439717,-500.0,0.00023747,2]
[317067918,1709675439727,-500.0,0.00023747,2]
[317067919,1709675439736,-500.0,0.00023747,2]
[317067920,1709675439747,-500.0,0.00023747,2]
[317067921,1709675439756,-500.0,0.00023747,2]
[317067922,1709675439765,-500.0,0.00023747,2]
[317067923,1709675439774,-500.0,0.00023747,2]
[317067924,1709675439788,-500.0,0.00023747,2]
[317067925,1709675439798,-500.0,0.00023747,2]
[317067926,1709675439808,-418.219048,0.00023747,2]
[317067927,1709675439818,-500.0,0.00023747,2]
[317067928,1709675439828,-500.0,0.00023747,2]
[317067929,1709675439837,-500.0,0.00023748,2]
[317067930,1709675439847,-500.0,0.00023748,2]
[317067931,1709675439856,-500.0,0.00023748,2]
[317067932,1709675439867,-500.0,0.00023748,2]
[317067933,1709675439877,-500.0,0.00023748,2]
[317067934,1709675439887,-500.0,0.00023748,2]
[317067935,1709675439896,-500.0,0.00023748,2]
[317067936,1709675439905,-895.45,0.00023748,2]
[317067937,1709675439915,-895.45,0.00023748,2]
[317067938,1709675439924,-895.45,0.00023748,2]
[317067939,1709675439933,-895.45,0.00023748,2]
[317067940,1709675439945,-895.45,0.00023748,2]
[317067941,1709675439954,-895.45,0.00023748,2]
[317067942,1709675439963,-895.45,0.00023748,2]
[317067943,1709675439972,-500.0,0.00023748,2]
[317067944,1709675439982,-369.66360785,0.00023748,2]
[317067945,1709675439991,-500.0,0.00023748,2]
[317067946,1709675440001,-500.0,0.00023748,2]
[317067947,1709675440012,-500.0,0.00023748,2]
[317067948,1709675440022,-500.0,0.00023748,2]
[317067949,1709675440031,-500.0,0.00023748,2]
[317067950,1709675440041,-500.0,0.00023748,2]
[317067951,1709675440053,-500.0,0.00023748,2]
[317067952,1709675440063,-500.0,0.00023748,2]
[317067953,1709675440072,-500.0,0.00023748,2]
[317067954,1709675440082,-500.0,0.00023748,2]
[317067955,1709675440091,-500.0,0.00023748,2]
[317067956,1709675440100,-500.0,0.00023748,2]
[317067957,1709675440110,-500.0,0.00023748,2]
[317067958,1709675440119,-198.33874618,0.00023748,2]
[317067960,1709675440128,-500.0,0.00023748,2]
[317067962,1709675440137,-500.0,0.00023748,2]
[317067964,1709675440146,-500.0,0.00023748,2]
[317067965,1709675440155,-500.0,0.00023748,2]
[317067967,1709675440164,-500.0,0.00023748,2]
[317067969,1709675440173,-500.0,0.00023748,2]
[317067971,1709675440182,-500.0,0.00023748,2]
[317067973,1709675440194,-500.0,0.00023748,2]
[317067974,1709675440203,-2776.57,0.00023748,2]
[317067976,1709675440212,-2776.57,0.00023748,2]
[317067978,1709675440220,-2776.57,0.00023748,2]
[317067979,1709675440229,-2776.57,0.00023748,2]
[317067981,1709675440239,-2776.57,0.00023748,2]
[317067983,1709675440248,-2776.57,0.00023748,2]
[317067984,1709675440257,-2776.57,0.00023748,2]
[317067986,1709675440267,-924.43,0.00023748,2]
[317067987,1709675440277,-924.43,0.00023748,2]
[317067989,1709675440286,-924.43,0.00023748,2]
[317067990,1709675440296,-924.43,0.00023748,2]
[317067991,1709675440305,-924.43,0.00023748,2]
[317067992,1709675440314,-924.43,0.00023748,2]
[317067993,1709675440323,-924.43,0.00023748,2]
[317067994,1709675440332,-500.0,0.00023748,2]
[317067995,1709675440342,-434.14962705,0.00023748,2]
[317067997,1709675440351,-276000.0,0.00023749,2]
[317067999,1709675440360,-500.0,0.00023846,2]
[317068001,1709675440369,-500.0,0.00023846,2]
[317068003,1709675440378,-500.0,0.00023846,2]
[317068004,1709675440386,-500.0,0.00023846,2]
[317068006,1709675440396,-500.0,0.00023846,2]
[317068008,1709675440405,-500.0,0.00023846,2]
[317068010,1709675440414,-500.0,0.00023847,2]
[317068012,1709675440424,-500.0,0.00023847,2]
[317068014,1709675440434,-500.0,0.00023847,2]
[317068016,1709675440445,-500.0,0.00023847,2]
[317068017,1709675440454,-500.0,0.00023847,2]
[317068019,1709675440464,-482.15082397,0.00023847,2]
[317068021,1709675440473,-500.0,0.00023847,2]
[317068023,1709675440483,-500.0,0.00023847,2]
[317068025,1709675440491,-500.0,0.00023847,2]
[317068027,1709675440503,-500.0,0.00023847,2]
[317068028,1709675440512,-924.43,0.00023847,2]
[317068030,1709675440522,-500.0,0.00023848,2]
[317068032,1709675440532,-500.0,0.00023848,2]
[317068034,1709675440541,-500.0,0.00023848,2]
[317068036,1709675440549,-500.0,0.00023848,2]
[317068038,1709675440558,-500.0,0.00023848,2]
[317068039,1709675440567,-500.0,0.00023848,2]
[317068041,1709675440577,-500.0,0.00023848,2]
[317068043,1709675440586,-500.0,0.00023848,2]
[317068045,1709675440595,-500.0,0.00023848,2]
[317068047,1709675440604,-500.0,0.00023848,2]
[317068049,1709675440613,-500.0,0.00023848,2]
[317068050,1709675440623,-500.0,0.00023848,2]
[317068052,1709675440633,-500.0,0.00023848,2]
[317068054,1709675440642,-500.0,0.00023848,2]
[317068056,1709675440651,-500.0,0.00023848,2]
[317068058,1709675440660,-500.0,0.00023848,2]
[317068060,1709675440669,-500.0,0.00023848,2]
[317068061,1709675440678,-500.0,0.00023848,2]
[317068063,1709675440689,-8239.79880319,0.0002389,2]
[317068065,1709675440698,-500.0,0.00023898,2]
[317068067,1709675440708,-500.0,0.00023898,2]
[317068069,1709675440717,-500.0,0.00023898,2]
[317068071,1709675440726,-541.34695956,0.00023898,2]
[317068073,1709675440736,-895.45,0.00023898,2]
[317068075,1709675440745,-2776.57,0.00023898,2]
[317068076,1709675440755,-500.0,0.00023899,2]
[317068078,1709675440764,-500.0,0.00023899,2]
[317068080,1709675440774,-500.0,0.00023899,2]
[317068082,1709675440786,-500.0,0.00023899,2]
[317068084,1709675440795,-14999.98,0.00023899,2]
[317068086,1709675440804,-500.0,0.000239,2]
[317068088,1709675440814,-176.46034308,0.000239,2]
[317068089,1709675440823,-191.15,0.000239,2]
[317068091,1709675440833,-500.0,0.00023901,2]
[317068093,1709675440843,-500.0,0.00023901,2]
[317068095,1709675440852,-500.0,0.00023901,2]
[317068097,1709675440863,-397.11651725,0.00023902,3]
[317068098,1709675440872,-500.0,0.00023902,2]
[317068100,1709675440881,-500.0,0.00023902,2]
[317068102,1709675440890,-500.0,0.00023902,2]
[317068104,1709675440899,-14999.98,0.00023902,2]
[317068106,1709675440910,-14999.98,0.00023902,2]
[317068108,1709675440919,-12499.99,0.00023904,2]
[317068110,1709675440928,-500.0,0.00023906,2]
[317068111,1709675440940,-500.0,0.00023906,2]
[317068113,1709675440949,-500.0,0.00023906,2]
[317068115,1709675440961,-14999.98,0.00023907,2]
[317068117,1709675440970,-180.86,0.00023907,2]
[317068118,1709675440979,-12499.99,0.00023908,2]
[317068120,1709675440988,-14999.98,0.00023908,2]
[317068122,1709675440997,-14999.98,0.00023908,2]
[317068124,1709675441007,-895.45,0.00023908,2]
[317068126,1709675441016,-2776.57,0.00023908,2]
[317068127,1709675441026,-12499.99,0.00023909,2]
[317068129,1709675441035,-14999.98,0.0002391,2]
[317068131,1709675441045,-500.0,0.0002391,2]
[317068133,1709675441054,-14999.98,0.0002391,2]
[317068134,1709675441063,-12320.79,0.0002391,2]
[317068136,1709675441072,-500.0,0.0002391,2]
[317068138,1709675441082,-924.43,0.0002391,2]
[317068140,1709675441091,-12499.99,0.00023911,2]
[317068141,1709675441100,-500.0,0.00023912,2]
[317068142,1709675441109,-500.0,0.00023912,2]
[317068143,1709675441119,-500.0,0.00023912,2]
[317068144,1709675441128,-14999.98,0.00023912,2]
[317068145,1709675441139,-14999.98,0.00023915,2]
[317068146,1709675441148,-500.0,0.00023915,2]
[317068147,1709675441157,-500.0,0.00023915,2]
[317068148,1709675441166,-500.0,0.00023915,2]
[317068149,1709675441176,-895.45,0.00023915,2]
[317068150,1709675441185,-2776.57,0.00023915,2]
[317068151,1709675441197,-12499.99,0.00023916,2]
[317068152,1709675441206,-14999.98,0.00023916,2]
[317068153,1709675441216,-12499.99,0.00023916,2]
[317068154,1709675441225,-12499.99,0.00023916,2]
[317068155,1709675441234,-497.76,0.00023917,2]
[317068156,1709675441243,-500.0,0.00023917,2]
[317068157,1709675441252,-500.0,0.00023917,2]
[317068158,1709675441261,-14999.98,0.00023917,2]
[317068159,1709675441270,-14999.98,0.00023918,2]
[317068160,1709675441279,-14619.48037898,0.00023918,2]
[317068161,1709675441321,-155.10702385,0.0001981,2]
[317068162,1709675441331,-380.49962102,0.00023918,2]
[317068163,1709675441340,-12499.99,0.00023919,2]
[317068165,1709675441349,-500.0,0.0002392,2]
[317068166,1709675441359,-490.40335522,0.0002392,2]
[317068169,1709675441373,-9.59664478,0.0002392,2]
[317068170,1709675441382,-9534.86351356,0.0002392,2]
[317068172,1709675441396,-5465.11648644,0.0002392,2]
[317068174,1709675441405,-12209.06186003,0.00023921,2]
[317068175,1709675441417,-290.92813997,0.00023921,2]
[317068177,1709675441429,-1285.21696003,0.00023921,2]
[317068214,1709675443429,-173.24,0.00023919,3]
[317068217,1709675443441,-442.52218876,0.00023921,2]
[317068218,1709675443453,-10772.25085121,0.00023921,2]
[317068219,1709675443462,-288.44,0.00023923,2]
[317068220,1709675443471,-365.32,0.00023923,2]
[317068221,1709675443481,-466.73670118,0.00023923,2]
[317077825,1709676632237,-155.08840039,0.00019573,2]
[317077827,1709676632246,-1880.71104706,0.00019574,2]
[317077829,1709676632255,-24900.0,0.00019575,2]
[317077831,1709676632265,-186.77693025,0.00019714,2]
[317077833,1709676632274,-348.933456,0.00019775,2]
[317077835,1709676632283,-3987.3042846,0.00020359,2]
[317077837,1709676632293,-250.0,0.00020428,2]
[317077839,1709676632302,-3783.75584457,0.00021,2]
[317077841,1709676632312,-913.68828079,0.00021817,2]
[317077843,1709676632321,-177.0,0.00022,2]
[317077844,1709676632331,-155.0,0.00022876,2]
[317077847,1709676632341,-161.77295022,0.00023008,2]
[317077849,1709676632350,-525.0,0.00023009,3]
[317077851,1709676632360,-643.125,0.00023009,3]
[317077853,1709676632369,-308.60039254,0.0002301,2]
[317077855,1709676632379,-218.93768496,0.0002301,3]
[317077856,1709676632391,-793.64901915,0.00023012,3]
[317077858,1709676632401,-776.64445322,0.00023172,3]
[317077860,1709676632410,-2576.47635223,0.00023172,6]
[317077862,1709676632420,-32429.87286105,0.0002318,6]
[317077865,1709676632430,-361.17,0.00023277,3]
[317077866,1709676632440,-180.58,0.00023277,3]
[317077868,1709676632449,-541.77,0.00023277,3]
[317077870,1709676632458,-500.0,0.00023286,2]
[317077872,1709676632467,-500.0,0.00023286,2]
[317077874,1709676632476,-500.0,0.00023286,2]
[317077876,1709676632486,-500.0,0.00023286,2]
[317077878,1709676632496,-492.20946721,0.00023286,2]
[317077880,1709676632505,-500.0,0.00023286,2]
[317077882,1709676632514,-489.71297004,0.00023286,2]
[317077884,1709676632523,-500.0,0.00023286,2]
[317077886,1709676632533,-500.0,0.00023286,2]
[317077888,1709676632542,-500.0,0.00023286,2]
[317077890,1709676632551,-500.0,0.00023286,2]
[317077892,1709676632560,-225.78027817,0.00023286,2]
[317077894,1709676632569,-500.0,0.00023286,2]
[317077896,1709676632579,-500.0,0.00023286,2]
[317077898,1709676632588,-500.0,0.00023286,2]
[317077900,1709676632598,-500.0,0.00023286,2]
[317077902,1709676632607,-500.0,0.00023286,2]
[317077904,1709676632616,-500.0,0.00023286,2]
[317077906,1709676632625,-500.0,0.00023286,2]
[317077908,1709676632637,-500.0,0.00023286,2]
[317077910,1709676632646,-500.0,0.00023286,2]
[317077912,1709676632655,-500.0,0.00023286,2]
[317077914,1709676632665,-500.0,0.00023286,2]
[317077915,1709676632674,-500.0,0.00023286,2]
[317077916,1709676632683,-500.0,0.00023286,2]
[317077918,1709676632692,-500.0,0.00023286,2]
[317077919,1709676632702,-500.0,0.00023287,2]
[317077921,1709676632711,-533.49744535,0.00023287,2]
[317077922,1709676632722,-500.0,0.00023287,2]
[317077923,1709676632731,-500.0,0.00023287,2]
[317077924,1709676632740,-500.0,0.00023287,2]